bitfinex-derivatives/quotes_SOLF0:USTF0_20241105
["timestamp","ask_amount","ask_price","bid_price","bid_amount"]
[1730836863568,2.4384,164.03,163.96,2.4393]
[1730836863766,30.43404374,164.04,163.89,1.3479]
[1730836864273,74.41404374,164.2,163.93,30.43404374]
[1730836864274,30.43404374,164.07,163.93,30.43404374]
[1730836864459,30.43404374,164.07,163.89,1.3479]
[1730836864460,2.4379,164.07,163.99,2.4389]
[1730836864858,30.43404374,164.1,163.96,39.65404374]
[1730836865460,30.43404374,164.12,163.96,39.65404374]
[1730836865662,30.43404374,164.12,163.98,30.43404374]
[1730836866470,30.43404374,164.12,163.96,39.65404374]
[1730836866664,30.43404374,164.1,163.96,30.43404374]
[1730836866857,2.4381,164.06,163.97,2.4393]
[1730836867061,30.43404374,164.07,163.97,2.4393]
[1730836867469,30.43404374,164.01,163.89,1.3479]
[1730836867668,9.22,164.09,163.89,1.3479]
[1730836867858,30.43404374,164.0,163.89,1.3479]
[1730836868058,30.43404374,164.0,163.89,5.6179]
[1730836868557,30.43404374,163.97,163.89,5.6179]
[1730836868758,30.43404374,164.04,163.89,4.27]
[1730836868759,30.43404374,163.95,163.89,4.27]
[1730836868967,30.43404374,163.92,163.89,4.27]
[1730836869165,2.4403,163.9,163.89,4.27]
[1730836869469,30.43404374,163.94,163.89,4.27]
[1730836869665,30.43404374,163.92,163.79,10.5029]
[1730836870369,30.43404374,163.96,163.81,30.43404374]
[1730836870571,30.43404374,163.96,163.79,10.5029]
[1730836870766,48.79404374,164.04,163.83,2.4414]
[1730836870767,2.4406,163.89,163.83,2.4414]
[1730836871068,30.43404374,163.92,163.79,10.5029]
[1730836871867,30.43404374,163.96,163.81,30.43404374]
[1730836872071,30.43404374,164.04,163.84,30.43404374]
[1730836872072,30.43404374,163.98,163.84,30.43404374]
[1730836872272,30.43404374,163.98,163.88,2.4406]
[1730836872468,30.43404374,163.98,163.84,30.43404374]
[1730836872868,2.44,163.93,163.86,2.4409]
[1730836873472,2.4395,163.96,163.85,4.27]
[1730836873674,30.43404374,163.98,163.85,4.27]
[1730836873876,77.52700399,164.2,163.93,30.43404374]
[1730836873877,30.43404374,164.07,163.93,30.43404374]
[1730836874172,9.22,164.18,163.98,30.43404374]
[1730836874372,9.22,164.18,164.0,30.43404374]
[1730836874875,30.43404374,164.15,164.0,30.43404374]
[1730836875078,2.4372,164.11,164.03,30.43404374]
[1730836875377,30.43404374,164.15,164.0,30.43404374]
[1730836875879,43.98,164.2,164.03,30.43404374]
[1730836876176,30.43404374,164.07,163.94,2.6954]
[1730836876576,2.4386,164.02,163.95,2.4395]
[1730836876773,30.43404374,164.07,163.95,2.4395]
[1730836876973,30.43404374,164.07,163.94,2.6954]
[1730836877275,30.43404374,164.07,163.97,2.4393]
[1730836877579,30.43404374,164.1,163.95,30.43404374]
[1730836877776,30.43404374,164.13,163.97,30.43404374]
[1730836877970,30.43404374,164.16,164.0,30.43404374]
[1730836878168,30.43404374,164.16,164.03,30.43404374]
[1730836878369,2.4368,164.14,164.06,2.4378]
[1730836878573,39.63404374,164.18,164.03,30.43404374]
[1730836878768,30.43404374,164.18,164.06,30.43404374]
[1730836879081,2.4369,164.13,164.08,2.4376]
[1730836879474,2.4369,164.13,164.06,30.43404374]
[1730836879475,30.43404374,164.21,164.06,30.43404374]
[1730836879781,30.43404374,164.21,164.09,30.43404374]
[1730836880374,2.4362,164.18,164.09,30.43404374]
[1730836880675,9.2,164.26,164.06,30.43404374]
[1730836880676,30.43404374,164.21,164.06,30.43404374]
[1730836880865,2.4368,164.14,164.09,2.4375]
[1730836881573,2.4366,164.15,164.09,2.4375]
[1730836882175,9.2,164.26,164.05,9.2]
[1730836882176,2.4362,164.18,164.12,2.437]
[1730836882681,30.43404374,164.26,164.11,30.43404374]
[1730836882873,30.43404374,164.26,164.14,30.43404374]
[1730836883374,2.4356,164.22,164.16,2.4363]
[1730836883972,2.4354,164.23,164.17,2.4362]
[1730836884172,30.43404374,164.34,164.2,30.43404374]
[1730836884480,30.43404374,164.34,164.23,2.4353]
[1730836884481,2.4347,164.29,164.23,2.4353]
[1730836884782,2.4347,164.29,164.2,30.43404374]
[1730836884783,30.43404374,164.34,164.2,30.43404374]
[1730836884978,30.43404374,164.31,164.17,30.43404374]
[1730836885584,4.8649,164.44,164.23,30.43404374]
[1730836885784,30.43404374,164.53,164.25,30.43404374]
[1730836885785,30.43404374,164.41,164.25,30.43404374]
[1730836885972,30.43404374,164.41,164.28,30.43404374]
[1730836886177,2.4337,164.35,164.3,2.4343]
[1730836886373,4.8626,164.52,164.28,30.43404374]
[1730836886374,30.43404374,164.43,164.28,30.43404374]
[1730836886572,2.4335,164.37,164.32,2.4341]
[1730836886777,30.43404374,164.43,164.28,30.43404374]
[1730836887188,2.4334,164.38,164.28,30.43404374]
[1730836887385,30.43404374,164.43,164.28,30.43404374]
[1730836887586,8.84,164.5,164.28,30.43404374]
[1730836887587,30.43404374,164.4,164.28,30.43404374]
[1730836887777,30.43404374,164.4,164.27,8.84]
[1730836888286,2.4341,164.32,164.27,11.2747]
[1730836888479,30.43404374,164.4,164.25,74.31404374]
[1730836888682,30.43404374,164.45,164.21,2.6473]
[1730836888683,2.4352,164.25,164.21,2.6473]
[1730836888980,30.43404374,164.32,164.21,2.6473]
[1730836889176,8.84,164.41,164.21,2.6473]
[1730836889177,30.43404374,164.35,164.21,2.6473]
[1730836889685,30.43404374,164.37,164.23,30.43404374]
[1730836890185,30.43404374,164.37,164.24,8.84]
[1730836890389,2.4339,164.34,164.24,11.2753]
[1730836890592,30.43404374,164.37,164.24,8.84]
[1730836890890,30.43404374,164.37,164.25,30.43404374]
[1730836891285,30.43404374,164.4,164.25,30.43404374]
[1730836891585,2.4338,164.35,164.29,2.4345]
[1730836891781,30.43404374,164.4,164.29,2.4345]
[1730836891982,30.43404374,164.4,164.25,30.43404374]
[1730836892183,2.434,164.33,164.28,2.4346]
[1730836892379,30.43404374,164.4,164.25,30.43404374]
[1730836892687,30.43404374,164.43,164.29,4.26]
[1730836892884,30.43404374,164.4,164.29,4.26]
[1730836893284,2.4338,164.35,164.3,10.9344]
[1730836893485,30.43404374,164.43,164.3,8.5]
[1730836893686,30.43404374,164.43,164.31,2.4342]
[1730836893687,2.4337,164.35,164.31,2.4342]
[1730836893885,30.43404374,164.43,164.31,8.5]
[1730836894090,30.85214374,164.43,164.31,8.5]
[1730836894383,30.43404374,164.4,164.29,4.26]
[1730836895691,30.43404374,164.4,164.29,6.6944]
[1730836896096,30.43404374,164.4,164.29,4.26]
[1730836896294,30.43404374,164.37,164.29,4.26]
[1730836896787,2.4341,164.32,164.29,4.26]
[1730836897389,30.43404374,164.37,164.29,4.26]
[1730836897589,30.85214374,164.43,164.29,34.69404374]
[1730836897799,30.43404374,164.4,164.3,8.5]
[1730836897987,2.4338,164.35,164.3,10.9344]
[1730836898391,0.4181,164.43,164.32,30.43404374]
[1730836898690,0.4181,164.43,164.35,30.43404374]
[1730836898890,0.4181,164.43,164.38,30.43404374]
[1730836899890,0.4181,164.43,164.4,30.43404374]
[1730836900090,0.4181,164.43,164.4,32.86684374]
[1730836900282,0.4181,164.43,164.4,30.43404374]
[1730836901188,48.6982,164.66,164.4,30.43404374]
[1730836901391,30.43404374,164.64,164.5,30.43404374]
[1730836902090,30.43404374,164.55,164.41,31.80394374]
[1730836902299,30.43404374,164.58,164.44,32.86634374]
[1730836902800,2.4316,164.5,164.44,32.86634374]
[1730836903093,30.43404374,164.58,164.44,33.47444374]
[1730836903286,30.43404374,164.58,164.44,30.43404374]
[1730836903693,30.43404374,164.58,164.46,3.0399]
[1730836903898,3.0386,164.54,164.44,30.43404374]
[1730836904093,30.43404374,164.58,164.44,30.43404374]
[1730836904295,30.43404374,164.55,164.41,31.80394374]
[1730836904897,3.0395,164.5,164.45,30.43404374]
[1730836905091,30.43404374,164.58,164.45,30.43404374]
[1730836905393,30.43404374,164.58,164.46,3.0399]
[1730836905596,30.43404374,164.58,164.41,1.3699]
[1730836905597,30.43404374,164.61,164.47,30.43404374]
[1730836905795,30.43404374,164.63,164.47,30.43404374]
[1730836906000,30.43404374,164.63,164.5,30.43404374]
[1730836906497,30.43404374,164.63,164.51,3.039]
[1730836906498,3.0382,164.56,164.51,3.039]
[1730836906702,30.43404374,164.63,164.51,3.039]
[1730836906995,43.8,164.77,164.57,3.038]
[1730836906996,3.0373,164.62,164.57,3.038]
[1730836907294,17.56969964,164.74,164.56,30.43404374]
[1730836907494,3.038,164.58,164.53,11.5187]
[1730836908487,30.43404374,164.7,164.57,30.43404374]
[1730836908693,3.0366,164.65,164.6,30.43404374]
[1730836908888,30.43404374,164.71,164.58,30.43404374]
[1730836909088,3.0363,164.67,164.55,30.43404374]
[1730836909296,30.43404374,164.68,164.55,30.43404374]
[1730836909492,30.43404374,164.68,164.53,30.43404374]
[1730836909689,3.0379,164.58,164.53,30.43404374]
[1730836909888,30.43404374,164.68,164.53,30.43404374]
[1730836910189,3.0387,164.54,164.47,31.71864374]
[1730836910391,4.25,164.59,164.5,30.43404374]
[1730836910592,4.25,164.59,164.53,30.43404374]
[1730836910798,7.2878,164.59,164.53,30.43404374]
[1730836911194,3.0384,164.56,164.5,33.47314374]
[1730836911397,4.25,164.59,164.5,30.43404374]
[1730836911900,3.0379,164.58,164.53,33.47264374]
[1730836912399,3.0379,164.58,164.54,3.0385]
[1730836912400,3.0378,164.58,164.54,3.0385]
[1730836912596,4.25,164.59,164.48,1.3787]
[1730836912789,4.25,164.59,164.5,30.43404374]
[1730836913097,4.25,164.59,164.48,30.43404374]
[1730836913494,4.25,164.59,164.5,30.43404374]
[1730836913890,4.25,164.59,164.54,30.43404374]
[1730836914199,4.25,164.59,164.56,30.43404374]
[1730836914603,3.0371,164.62,164.57,3.038]
[1730836914901,8.14,164.7,164.56,30.43404374]
[1730836915197,3.0365,164.66,164.61,3.0373]
[1730836915404,3.0365,164.66,164.59,30.43404374]
[1730836915599,3.0367,164.64,164.6,3.0374]
[1730836915903,4.25,164.69,164.59,30.43404374]
[1730836916098,3.0364,164.66,164.61,3.0371]
[1730836916294,4.25,164.69,164.64,30.43404374]
[1730836916806,3.0363,164.67,164.62,3.037]
[1730836917097,4.25,164.69,164.61,38.57404374]
[1730836917304,4.25,164.69,164.63,30.43404374]
[1730836917602,4.25,164.69,164.61,8.14]
[1730836917803,4.25,164.69,164.62,3.0369]
[1730836918601,4.25,164.69,164.61,8.14]
[1730836918810,4.25,164.69,164.6,30.43404374]
[1730836919006,4.25,164.69,164.58,30.43404374]
[1730836919209,3.0365,164.66,164.61,30.43404374]
[1730836919904,4.25,164.69,164.61,30.43404374]
[1730836920111,3.0362,164.67,164.62,3.0371]
[1730836920603,3.0362,164.67,164.61,30.43404374]
[1730836920604,7.2858,164.69,164.64,3.0367]
[1730836920801,4.25,164.69,164.61,30.43404374]
[1730836921309,3.0365,164.66,164.61,30.43404374]
[1730836921501,4.25,164.69,164.61,30.43404374]
[1730836921898,3.0366,164.65,164.61,30.43404374]
[1730836922303,4.25,164.69,164.57,1.3306]
[1730836922499,30.43404374,164.66,164.53,31.83124374]
[1730836922901,30.43404374,164.64,164.36,30.43404374]
[1730836923101,30.43404374,164.67,164.53,30.43404374]
[1730836923713,4.25,164.69,164.55,30.43404374]
[1730836923904,3.0382,164.56,164.55,30.43404374]
[1730836924206,4.25,164.69,164.55,30.43404374]
[1730836924903,4.25,164.69,164.46,1.3488]
[1730836924904,4.25,164.69,164.67,30.43404374]
[1730836925310,8.14,164.79,164.67,30.43404374]
[1730836925512,3.036,164.68,164.67,30.43404374]
[1730836925699,8.14,164.79,164.67,30.43404374]
[1730836926203,4.24,164.72,164.69,30.43404374]
[1730836926409,2.96973748,164.92,164.71,30.43404374]
[1730836926607,31.44625374,164.91,164.77,30.43404374]
[1730836926799,0.47167,164.78,164.77,30.43404374]
[1730836927213,0.47167,164.78,164.75,30.43404374]
[1730836927911,0.47167,164.78,164.72,30.43404374]
[1730836928309,3.0346,164.76,164.72,30.43404374]
[1730836928512,0.47167,164.78,164.72,30.43404374]
[1730836929311,3.0344,164.77,164.72,30.43404374]
[1730836929505,0.47167,164.78,164.69,30.43404374]
[1730836929710,0.47167,164.78,164.72,30.43404374]
[1730836930017,3.0344,164.77,164.72,30.43404374]
[1730836930219,0.47167,164.78,164.72,30.43404374]
[1730836930516,0.47167,164.78,164.75,30.43404374]
[1730836930716,0.47167,164.78,164.77,30.43404374]
[1730836931320,0.27,164.83,164.77,30.43404374]
[1730836931905,3.0338,164.8,164.77,30.43404374]
[1730836932719,0.27,164.83,164.77,30.43404374]
[1730836933022,30.43404374,165.0,164.8,30.43404374]
[1730836933319,30.43404374,165.0,164.78,8.12]
[1730836933320,1.2723,164.99,164.87,30.43404374]
[1730836933717,3.0322,164.89,164.87,30.43404374]
[1730836933913,3.0322,164.89,164.85,30.43404374]
[1730836934114,1.2723,164.99,164.85,30.43404374]
[1730836934322,3.0325,164.87,164.85,30.43404374]
[1730836934520,1.2723,164.99,164.85,30.43404374]
[1730836934719,3.0314,164.93,164.85,30.43404374]
[1730836934919,1.2723,164.99,164.85,30.43404374]
[1730836935214,8.12,165.03,164.85,30.43404374]
[1730836935413,30.43404374,165.01,164.85,30.43404374]
[1730836935626,30.43404374,165.01,164.88,30.43404374]
[1730836935825,2.5466,165.02,164.88,30.43404374]
[1730836936127,30.43404374,165.04,164.9,30.43404374]
[1730836936319,1.2708,165.03,164.88,30.43404374]
[1730836936626,30.43404374,165.01,164.88,30.43404374]
[1730836937729,3.0322,164.89,164.85,30.43404374]
[1730836937915,30.43404374,164.96,164.82,30.43404374]
[1730836938322,3.0323,164.88,164.82,33.46734374]
[1730836938615,30.43404374,164.96,164.82,30.43404374]
[1730836938821,30.43404374,164.9,164.79,1.3215]
[1730836939020,30.43404374,164.87,164.74,30.43404374]
[1730836940120,2.9618,164.89,164.74,30.43404374]
[1730836940315,10.81183747,165.0,164.77,30.43404374]
[1730836940517,3.0328,164.86,164.84,30.43404374]
[1730836941219,3.0331,164.84,164.81,30.43404374]
[1730836941624,30.43404374,164.95,164.81,30.43404374]
[1730836942115,1.3354,164.97,164.87,33.46654374]
[1730836942428,3.0323,164.88,164.84,30.43404374]
[1730836942624,1.3607,164.99,164.84,30.43404374]
[1730836942825,1.3607,164.99,164.85,3.0328]
[1730836943025,3.0319,164.91,164.85,3.0328]
[1730836943222,1.3607,164.99,164.87,30.43404374]
[1730836943430,7.78,165.02,164.89,30.43404374]
[1730836943621,3.0312,164.95,164.89,30.43404374]
[1730836943822,3.0312,164.95,164.87,30.43404374]
[1730836943823,7.78,165.05,164.92,30.43404374]
[1730836944124,3.0302,165.0,164.95,30.43404374]
[1730836944328,10.7375,165.08,164.95,30.43404374]
[1730836945017,10.7375,165.08,164.92,30.43404374]
[1730836945018,30.43404374,165.07,164.92,30.43404374]
[1730836945421,30.43404374,165.01,164.87,33.46654374]
[1730836945625,3.0312,164.95,164.87,30.43404374]
[1730836945926,30.43404374,165.04,164.91,30.43404374]
[1730836946128,3.0323,164.89,164.87,30.43404374]
[1730836946327,30.43404374,165.01,164.87,30.43404374]
[1730836946536,30.43404374,164.98,164.84,30.43404374]
[1730836947029,30.43404374,164.98,164.84,33.46704374]
[1730836947234,3.0323,164.89,164.84,30.43404374]
[1730836947422,0.9342,164.89,164.84,30.43404374]
[1730836947624,7.78,165.0,164.87,30.43404374]
[1730836948127,7.78,165.0,164.9,30.43404374]
[1730836948333,30.43404374,165.04,164.9,30.43404374]
[1730836948534,3.0304,164.99,164.93,3.0313]
[1730836948728,30.43404374,165.04,164.87,30.43404374]
[1730836948936,30.43404374,165.04,164.91,30.43404374]
[1730836949740,3.0311,164.95,164.91,30.43404374]
[1730836949932,0.2957,164.98,164.91,30.43404374]
[1730836950734,0.2957,164.98,164.87,30.43404374]
[1730836951431,0.2957,164.98,164.93,30.43404374]
[1730836952033,3.3262,164.98,164.93,33.46524374]
[1730836952838,3.3262,164.98,164.93,30.43404374]
[1730836953541,0.2957,164.98,164.94,3.0311]
[1730836953930,3.0309,164.96,164.93,30.43404374]
[1730836954329,0.2957,164.98,164.92,4.022]
[1730836954534,3.0311,164.95,164.92,4.022]
[1730836955236,3.0309,164.96,164.92,4.022]
[1730836955539,0.2957,164.98,164.93,33.46524374]
[1730836955737,3.3263,164.98,164.93,30.43404374]
[1730836956036,0.2957,164.98,164.94,3.031]
[1730836956341,0.2957,164.98,164.93,30.43404374]
[1730836958937,0.2957,164.98,164.92,4.022]
[1730836959439,3.0313,164.94,164.92,4.022]
[1730836959630,0.2957,164.98,164.92,4.022]
[1730836959841,0.2957,164.98,164.93,30.43404374]
[1730836960037,0.2957,164.98,164.92,4.022]
[1730836960437,3.0319,164.91,164.87,30.43404374]
[1730836960642,0.2957,164.98,164.87,30.43404374]
[1730836961936,0.2957,164.98,164.88,4.0739]
[1730836962141,0.2957,164.98,164.89,30.43404374]
[1730836962333,0.2957,164.98,164.92,30.43404374]
[1730836962739,0.2957,164.98,164.88,4.0739]
[1730836963142,3.0316,164.92,164.88,7.1062]
[1730836963641,0.2957,164.98,164.89,30.43404374]
[1730836964051,0.2957,164.98,164.92,30.43404374]
[1730836964544,3.3262,164.98,164.94,3.0311]
[1730836964851,0.2957,164.98,164.92,30.43404374]
[1730836965148,2.9730853,165.14,164.88,4.0739]
[1730836965149,7.44,165.08,164.94,30.43404374]
[1730836965653,0.38531,165.07,164.97,3.0305]
[1730836965951,0.38531,165.07,164.94,30.43404374]
[1730836966145,0.38531,165.07,164.98,3.0303]
[1730836966146,3.0298,165.02,164.98,3.0303]
[1730836966647,3.0298,165.02,164.94,30.43404374]
[1730836966648,0.38531,165.07,165.0,3.03]
[1730836966951,0.38531,165.07,165.0,30.43404374]
[1730836967144,0.38531,165.07,165.03,3.0295]
[1730836967342,6.32746447,165.25,165.05,30.43404374]
[1730836967540,30.43404374,165.22,165.08,30.43404374]
[1730836967738,30.43404374,165.22,165.08,33.46254374]
[1730836968247,3.0274,165.15,165.09,3.0283]
[1730836968745,31.79674374,165.25,165.11,30.43404374]
[1730836968945,10.73479233,165.24,165.13,30.43404374]
[1730836969151,12.13269233,165.26,165.13,30.43404374]
[1730836969748,10.73479233,165.26,165.13,30.43404374]
[1730836969945,10.73479233,165.26,165.14,2.6708]
[1730836970947,3.0258,165.24,165.19,30.43404374]
[1730836971143,19.22219233,165.32,165.19,30.43404374]
[1730836971339,17.85479233,165.32,165.19,30.43404374]
[1730836971544,3.0258,165.24,165.19,33.46064374]
[1730836971739,30.43404374,165.31,165.17,30.43404374]
[1730836971947,10.73479233,165.3,165.17,30.43404374]
[1730836972348,10.73479233,165.3,165.19,30.43404374]
[1730836972540,3.0266,165.2,165.17,30.43404374]
[1730836972744,10.73479233,165.3,165.17,30.43404374]
[1730836973047,3.0268,165.19,165.16,1.2924]
[1730836973249,30.43404374,165.2,164.93,30.43404374]
[1730836973445,30.43404374,165.2,165.07,30.43404374]
[1730836973645,30.43404374,165.25,165.1,30.43404374]
[1730836973843,7.12,165.24,165.1,30.43404374]
[1730836974248,3.0274,165.15,165.1,30.43404374]
[1730836974552,10.71550692,165.24,165.13,30.43404374]
[1730836974755,3.0263,165.21,165.13,30.43404374]
[1730836974950,30.43404374,165.25,165.13,30.43404374]
[1730836975548,30.43404374,165.25,165.1,37.55404374]
[1730836975751,30.43404374,165.22,165.1,7.12]
[1730836976153,30.43404374,165.25,165.13,30.43404374]
[1730836976349,30.43404374,165.28,165.13,30.43404374]
[1730836976555,3.0265,165.2,165.13,30.43404374]
[1730836977066,3.0265,165.2,165.14,3.0275]
[1730836977258,3.0267,165.19,165.14,3.0275]
[1730836977458,30.43404374,165.26,165.15,2.69]
[1730836978059,3.0267,165.19,165.15,2.69]
[1730836978254,30.43404374,165.26,165.15,2.69]
[1730836978655,3.0259,165.23,165.15,2.69]
[1730836978860,30.43404374,165.26,165.15,2.69]
[1730836979368,30.43404374,165.23,165.08,31.72644374]
[1730836979560,30.43404374,165.23,165.1,1.3702]
[1730836979764,37.55404374,165.23,165.1,1.3702]
[1730836980263,3.0276,165.14,165.1,1.3702]
[1730836980464,37.55404374,165.23,165.1,1.3702]
[1730836980666,30.43404374,165.21,165.1,1.3702]
[1730836980860,30.43404374,165.21,165.05,37.55404374]
[1730836980861,30.43404374,165.18,165.05,37.55404374]
[1730836981275,30.43404374,165.18,165.03,2.6887]
[1730836981470,3.0286,165.09,165.03,2.6887]
[1730836982074,3.0286,165.09,165.04,3.0292]
[1730836982278,21.0876,165.21,165.03,2.6887]
[1730836982279,30.43404374,165.13,165.03,2.6887]
[1730836982477,30.43404374,165.1,164.97,30.43404374]
[1730836982982,7.12,165.15,165.02,30.43404374]
[1730836983180,7.12,165.15,165.05,3.0292]
[1730836983479,7.12,165.2,165.08,30.43404374]
[1730836983777,30.43404374,165.19,165.05,30.43404374]
[1730836984274,30.43404374,165.19,165.06,2.7609]
[1730836984672,30.43404374,165.19,165.08,3.0285]
[1730836984871,30.43404374,165.19,165.06,4.1084]
[1730836985579,30.43404374,165.16,165.06,2.7609]
[1730836986086,30.43404374,165.16,165.02,30.43404374]
[1730836986582,30.43404374,165.13,165.01,2.7609]
[1730836986773,8.5037,165.12,165.01,2.7609]
[1730836986974,3.0286,165.09,164.99,30.43404374]
[1730836987173,8.5037,165.12,164.97,3.0306]
[1730836987174,30.43404374,165.1,164.97,30.43404374]
[1730836987375,7.12,165.09,164.99,30.43404374]
[1730836987774,7.12,165.09,164.96,30.43404374]
[1730836987972,33.10964374,165.08,164.94,30.43404374]
[1730836988289,33.10964374,165.08,164.93,3.8499]
[1730836988290,2.6756,165.08,164.99,30.43404374]
[1730836988577,7.12,165.09,164.99,30.43404374]
[1730836988782,3.0292,165.06,165.01,3.0299]
[1730836988983,1.3837,165.12,164.99,30.43404374]
[1730836989279,3.0287,165.08,164.99,30.43404374]
[1730836989482,1.3837,165.12,164.99,30.43404374]
[1730836989676,7.12,165.11,164.99,30.43404374]
[1730836989882,3.0294,165.05,165.0,3.0301]
[1730836990080,7.12,165.11,164.99,30.43404374]
[1730836990486,6.8,165.11,165.0,3.03]
[1730836990688,1.3837,165.12,164.99,30.43404374]
[1730836990886,3.0289,165.07,164.99,33.46424374]
[1730836991187,9.4756,165.18,165.05,30.43404374]
[1730836991386,3.0287,165.08,165.05,30.43404374]
[1730836991591,1.2585,165.17,165.05,30.43404374]
[1730836992774,21.44742753,165.29,165.08,30.43404374]
[1730836992976,3.0269,165.18,165.13,3.0277]
[1730836993180,33.15974374,165.26,165.12,30.43404374]
[1730836993181,39.95974374,165.26,165.12,30.43404374]
[1730836993585,2.7257,165.26,165.14,30.43404374]
[1730836993886,1.2605,165.28,165.17,30.43404374]
[1730836994080,3.026,165.23,165.17,33.46094374]
[1730836994387,37.23404374,165.31,165.17,30.43404374]
[1730836995090,37.23404374,165.31,165.19,3.0266]
[1730836995291,37.23404374,165.31,165.17,30.43404374]
[1730836995489,3.026,165.23,165.17,30.43404374]
[1730836996080,37.23404374,165.31,165.17,30.43404374]
[1730836996081,37.23404374,165.31,165.18,3.0267]
[1730836996586,37.23404374,165.31,165.2,30.43404374]
[1730836996993,3.0257,165.25,165.2,30.43404374]
[1730836997291,37.23404374,165.31,165.17,30.43404374]
[1730836998278,3.0258,165.24,165.18,3.0267]
[1730836998478,37.23404374,165.31,165.17,30.43404374]
[1730836998785,3.0252,165.27,165.17,33.46094374]
[1730836999096,37.23404374,165.31,165.17,33.46094374]
[1730836999288,37.23404374,165.31,165.17,30.43404374]
[1730836999289,3.0265,165.2,165.17,30.43404374]
[1730836999482,30.43404374,165.29,165.17,30.43404374]
[1730837000184,3.0265,165.2,165.17,30.43404374]
[1730837001096,30.43404374,165.29,165.17,30.43404374]
[1730837001491,3.0266,165.2,165.17,30.43404374]
[1730837001793,30.43404374,165.29,165.17,30.43404374]
[1730837001991,3.026,165.23,165.17,30.43404374]
[1730837002192,1.2605,165.33,165.2,30.43404374]
[1730837002485,3.0253,165.27,165.22,30.43404374]
[1730837002691,1.2605,165.33,165.22,30.43404374]
[1730837003083,3.0248,165.29,165.25,30.43404374]
[1730837003282,1.2605,165.33,165.25,30.43404374]
[1730837003484,6.8,165.39,165.25,30.43404374]
[1730837003783,1.3036,165.4,165.28,30.43404374]
[1730837004184,1.3036,165.4,165.31,30.43404374]
[1730837004386,1.3036,165.4,165.29,3.0247]
[1730837004588,1.3036,165.4,165.29,1.3839]
[1730837004790,62.66447843,165.47,165.33,30.43404374]
[1730837004991,1.3478,165.48,165.33,30.43404374]
[1730837005182,3.0221,165.44,165.33,33.45804374]
[1730837005385,1.3478,165.48,165.36,30.43404374]
[1730837006189,3.0229,165.4,165.36,30.43404374]
[1730837006487,1.3478,165.48,165.33,30.43404374]
[1730837006687,3.0224,165.43,165.33,30.43404374]
[1730837006888,30.43404374,165.46,165.33,30.43404374]
[1730837007288,3.0234,165.37,165.33,30.43404374]
[1730837007485,30.43404374,165.46,165.33,30.43404374]
[1730837007686,1.3478,165.48,165.36,30.43404374]
[1730837007895,3.0226,165.41,165.36,30.43404374]
[1730837008186,1.3478,165.48,165.36,30.43404374]
[1730837008403,3.0224,165.42,165.36,33.45744374]
[1730837009083,1.3478,165.48,165.36,30.43404374]
[1730837009588,3.0232,165.38,165.34,30.43404374]
[1730837009791,1.3478,165.48,165.34,30.43404374]
[1730837010091,0.26802,165.46,165.34,30.43404374]
[1730837010490,0.26802,165.46,165.36,30.43404374]
[1730837011086,3.0225,165.42,165.36,33.45744374]
[1730837011696,0.26802,165.46,165.34,30.43404374]
[1730837012395,30.43404374,165.44,165.31,30.43404374]
[1730837012588,6.48,165.43,165.3,2.61]
[1730837012791,3.0239,165.34,165.3,2.61]
[1730837013189,6.48,165.43,165.3,2.61]
[1730837013699,3.0238,165.35,165.3,2.61]
[1730837014303,6.48,165.43,165.3,2.61]
[1730837015596,30.43404374,165.42,165.3,2.61]
[1730837015800,3.0242,165.33,165.3,2.61]
[1730837015998,30.43404374,165.42,165.3,1.2902]
[1730837016398,3.0243,165.32,165.3,1.2902]
[1730837016702,30.43404374,165.42,165.3,1.2902]
[1730837016899,3.0242,165.33,165.3,1.2902]
[1730837017095,30.43404374,165.42,165.3,1.2902]
[1730837017701,30.43404374,165.39,165.24,30.43404374]
[1730837017896,1.2996,165.38,165.24,30.43404374]
[1730837018096,30.43404374,165.37,165.24,30.43404374]
[1730837018295,6.48,165.36,165.21,31.71394374]
[1730837018499,3.0256,165.25,165.21,31.71394374]
[1730837018699,6.48,165.36,165.21,31.71394374]
[1730837018903,6.48,165.36,165.24,30.43404374]
[1730837019101,1.2996,165.38,165.27,30.43404374]